fUST/lending_fUST_20250911
["ID","MTS","AMOUNT","RATE_DAILY","PERIOD"]
[384774904,1757532649257,-430.557456,0.00021059,2]
[384774905,1757532649266,-430.557456,0.00021059,2]
[384774906,1757532649391,-500.0,0.00021059,2]
[384774907,1757532649408,-500.0,0.00021059,2]
[384774908,1757532649419,-160.06589395,0.00021059,2]
[384774909,1757532649428,-500.0,0.00021059,2]
[384774910,1757532649437,-500.0,0.00021059,2]
[384774911,1757532649447,-500.0,0.00021061,2]
[384774912,1757532649456,-200.10347603,0.00021061,2]
[384774913,1757532649465,-500.0,0.00021061,2]
[384774914,1757532649476,-4000.0,0.00021136,2]
[384774915,1757532649487,-223.4,0.00021164,2]
[384774916,1757532649496,-151.0,0.00021182,2]
[384774917,1757532649505,-151.0,0.00021182,2]
[384774918,1757532649515,-151.0,0.00021182,2]
[384774919,1757532649523,-151.0,0.00021182,2]
[384774920,1757532649533,-151.0,0.00021182,2]
[384774921,1757532649542,-151.0,0.00021182,2]
[384774922,1757532649551,-151.0,0.00021182,2]
[384774923,1757532649561,-151.0,0.00021182,2]
[384774924,1757532649570,-151.0,0.00021182,2]
[384774925,1757532649578,-151.0,0.00021182,2]
[384774926,1757532649589,-163.272688,0.00021182,2]
[384774927,1757532649598,-151.0,0.00021182,2]
[384774928,1757532649607,-151.0,0.00021182,2]
[384774929,1757532649616,-151.0,0.00021182,2]
[384774930,1757532649625,-151.0,0.00021182,2]
[384774931,1757532649635,-153.328275,0.00021182,2]
[384774932,1757532649644,-153.328275,0.00021182,2]
[384774933,1757532649653,-153.328275,0.00021182,2]
[384774934,1757532649663,-153.328275,0.00021182,2]
[384774935,1757532649671,-151.0,0.00021182,2]
[384774936,1757532649682,-151.0,0.00021182,2]
[384774937,1757532649691,-186.675728,0.00021182,2]
[384774938,1757532649701,-186.675728,0.00021182,2]
[384774939,1757532649711,-186.675728,0.00021182,2]
[384774940,1757532649721,-186.675728,0.00021182,2]
[384774941,1757532649730,-255.901845,0.00021182,2]
[384774942,1757532649740,-151.0,0.000212,3]
[384774943,1757532649750,-500.0,0.00021259,2]
[384774944,1757532649760,-316.20134462,0.00021276,2]
[384774945,1757532649770,-500.0,0.00021276,2]
[384774946,1757532649779,-158.06402892,0.00021276,2]
[384774947,1757532649789,-500.0,0.00021276,2]
[384774948,1757532649798,-160.06367432,0.00021276,2]
[384774949,1757532649807,-500.0,0.00021276,2]
[384774950,1757532649817,-501.19101178,0.00021276,2]
[384774951,1757532649826,-599.02317176,0.00021276,2]
[384774952,1757532649836,-500.0,0.00021276,2]
[384774953,1757532649845,-158.07470665,0.00021276,2]
[384774954,1757532649855,-315.94754494,0.00021284,2]
[384774955,1757532649865,-500.0,0.00021284,2]
[384774956,1757532649875,-500.0,0.00021284,2]
[384774957,1757532649884,-500.0,0.00021284,2]
[384774958,1757532649893,-500.0,0.00021339,2]
[384774959,1757532649903,-151.0,0.00021344,2]
[384774960,1757532649912,-151.0,0.00021344,2]
[384774961,1757532649921,-151.0,0.00021344,2]
[384774962,1757532649932,-161.786827,0.00021344,2]
[384774963,1757532649942,-151.0,0.00021344,2]
[384774964,1757532649952,-151.0,0.00021344,2]
[384774965,1757532649962,-151.0,0.00021344,2]
[384774966,1757532649972,-1000.79784,0.000216,2]
[384774967,1757532649982,-1000.0,0.00021607,2]
[384774968,1757532649992,-518.44405499,0.00021607,2]
[384774969,1757532650003,-1000.0,0.00021607,2]
[384774970,1757532650014,-1000.0,0.00021607,2]
[384774971,1757532650024,-1000.0,0.00021609,2]
[384774972,1757532650034,-205.131633,0.0002161,2]
[384774973,1757532650043,-151.0,0.0002161,2]
[384774974,1757532650052,-151.0,0.0002161,2]
[384774975,1757532650061,-151.0,0.0002161,2]
[384774976,1757532650071,-207.262156,0.0002161,2]
[384774977,1757532650080,-4500.0,0.00021684,2]
[384774978,1757532650090,-1000.0,0.00021807,2]
[384774979,1757532650099,-1000.0,0.00021824,2]
[384774980,1757532650109,-1000.0,0.00021824,2]
[384774981,1757532650117,-1000.0,0.00021824,2]
[384774982,1757532650126,-1000.0,0.00021824,2]
[384774983,1757532650135,-591.72700337,0.00021832,2]
[384774984,1757532650145,-649.0,0.000219,2]
[384774985,1757532650154,-466.899093,0.00021915,3]
[384774986,1757532650163,-162.698496,0.00021915,3]
[384774987,1757532650172,-231.517763,0.00021918,2]
[384774988,1757532650182,-151.0,0.00021918,2]
[384774989,1757532650192,-151.0,0.00021918,2]
[384774990,1757532650201,-195823.9,0.00022,7]
[384774991,1757532650211,-19338.12,0.00022,7]
[384774992,1757532650221,-7608.38,0.00022,7]
[384774993,1757532650231,-204.88,0.00022,2]
[384774994,1757532650240,-151.005868,0.00022,7]
[384774995,1757532650250,-151.0,0.00022,7]
[384774996,1757532650260,-151.0,0.00022,7]
[384774997,1757532650269,-151.0,0.00022,7]
[384774998,1757532650278,-151.0,0.00022,7]
[384774999,1757532650288,-151.0,0.00022,7]
[384775000,1757532650297,-151.0,0.00022,7]
[384775001,1757532650307,-151.0,0.00022,7]
[384775002,1757532650316,-151.0,0.00022,7]
[384775003,1757532650324,-212.918457,0.00022,7]
[384775004,1757532650333,-151.0,0.00022,7]
[384775005,1757532650341,-151.0,0.00022,7]
[384775006,1757532650352,-151.0,0.00022,7]
[384775007,1757532650361,-151.0,0.00022,7]
[384775008,1757532650372,-151.0,0.00022,7]
[384775009,1757532650381,-151.0,0.00022,7]
[384775010,1757532650390,-151.0,0.00022,7]
[384775011,1757532650403,-274.599393,0.00022,7]
[384775012,1757532650413,-274.599393,0.00022,7]
[384775013,1757532650422,-274.599393,0.00022,7]
[384775014,1757532650434,-274.599393,0.00022,7]
[384775015,1757532650443,-151.0,0.00022,7]
[384775016,1757532650452,-151.0,0.00022,2]
[384775017,1757532650462,-151.0,0.00022,7]
[384775018,1757532650472,-183.986532,0.00022,7]
[384775019,1757532650483,-183.986532,0.00022,7]
[384775020,1757532650493,-183.986532,0.00022,7]
[384775021,1757532650503,-183.986532,0.00022,7]
[384775022,1757532650522,-151.0,0.00022,7]
[384775023,1757532650532,-151.0,0.00022,7]
[384775024,1757532650542,-160.0,0.00022,7]
[384775025,1757532650552,-151.0,0.00022,7]
[384775026,1757532650561,-151.0,0.00022,7]
[384775027,1757532650572,-151.0,0.00022,7]
[384775028,1757532650582,-151.0,0.00022,7]
[384775029,1757532650591,-151.0,0.00022,7]
[384775030,1757532650601,-151.0,0.00022,7]
[384775031,1757532650611,-151.0,0.00022,7]
[384775032,1757532650621,-151.0,0.00022,7]
[384775033,1757532650631,-151.0,0.00022,7]
[384775034,1757532650641,-281.452362,0.00022,7]
[384775035,1757532650651,-153.328275,0.00022,7]
[384775036,1757532650661,-153.328275,0.00022,7]
[384775037,1757532650670,-153.328275,0.00022,7]
[384775038,1757532650681,-153.328275,0.00022,7]
[384775039,1757532650691,-151.0,0.00022,7]
[384775040,1757532650701,-151.0,0.00022,7]
[384775041,1757532650713,-151.0,0.00022,7]
[384775042,1757532650723,-151.0,0.00022,7]
[384775043,1757532650732,-151.0,0.00022,7]
[384775044,1757532650743,-761.271209,0.00022,7]
[384775045,1757532650752,-761.271209,0.00022,7]
[384775046,1757532650762,-761.271209,0.00022,7]
[384775047,1757532650772,-761.271209,0.00022,7]
[384775048,1757532650782,-151.0,0.00022,7]
[384775049,1757532650791,-151.0,0.00022,7]
[384775050,1757532650801,-430.557456,0.00022,7]
[384775051,1757532650811,-430.557456,0.00022,7]
[384775052,1757532650821,-430.557456,0.00022,7]
[384775053,1757532650830,-430.557456,0.00022,7]
[384775054,1757532650841,-151.0,0.00022,7]
[384775055,1757532650851,-151.0,0.00022,7]
[384775056,1757532650861,-186.675728,0.00022,7]
[384775057,1757532650871,-186.675728,0.00022,7]
[384775058,1757532650881,-186.675728,0.00022,7]
[384775059,1757532650890,-186.675732,0.00022,7]
[384775060,1757532650901,-417.15472785,0.00022,7]
[384775061,1757532650910,-219.0,0.00022,2]
[384775062,1757532650920,-936.46,0.00022,2]
[384775063,1757532650930,-151.0,0.000221,7]
[384775064,1757532650941,-151.0,0.000221,6]
[384775065,1757532650951,-1000.0,0.000221,2]
[384775066,1757532650960,-223.4,0.0002214,3]
[384775067,1757532650970,-409.83904837,0.00022149,2]
[384775068,1757532650981,-1500.0,0.00022155,2]
[384775069,1757532650990,-510.2739433,0.00022155,2]
[384775070,1757532651000,-1405.42728165,0.00022157,2]
[384775071,1757532651010,-500.0,0.0002219,2]
[384775072,1757532651019,-500.0,0.0002219,2]
[384775073,1757532651029,-500.0,0.0002219,2]
[384775074,1757532651040,-379.34467269,0.0002219,10]
[384775075,1757532651049,-500.0,0.0002219,2]
[384775076,1757532651059,-219.0,0.00022192,7]
[384775077,1757532651070,-5000.0,0.00022232,2]
[384775078,1757532651080,-2117.05582959,0.00022322,6]
[384775079,1757532651090,-1112.30654963,0.00022355,2]
[384775080,1757532651099,-500.0,0.00022372,2]
[384775081,1757532651110,-1500.0,0.00022372,2]
[384775082,1757532651120,-434.31304384,0.00022372,2]
[384775083,1757532651130,-1500.0,0.00022372,2]
[384775084,1757532651140,-720.0,0.00022474,20]
[384775085,1757532651150,-1000.0,0.000226,2]
[384775086,1757532651160,-800.0,0.00022655,2]
[384775087,1757532651170,-800.0,0.00022666,2]
[384775088,1757532651179,-800.0,0.00022694,2]
[384775089,1757532651190,-800.0,0.00022711,2]
[384775090,1757532651200,-493.25233541,0.00022719,2]
[384775091,1757532651210,-800.0,0.00022725,2]
[384775092,1757532651219,-800.0,0.00022731,2]
[384775093,1757532651230,-800.0,0.00022738,2]
[384775094,1757532651239,-800.0,0.00022759,2]
[384775095,1757532651248,-800.0,0.00022787,2]
[384775096,1757532651258,-800.0,0.00022793,2]
[384775097,1757532651267,-800.0,0.00022814,2]
[384775098,1757532651277,-800.0,0.0002283,2]
[384775099,1757532651286,-183.986532,0.0002283,7]
[384775100,1757532651296,-183.986532,0.0002283,7]
[384775101,1757532651306,-183.986532,0.0002283,7]
[384775102,1757532651315,-183.986532,0.0002283,7]
[384775103,1757532651324,-151.0,0.0002283,7]
[384775104,1757532651334,-151.0,0.0002283,7]
[384775105,1757532651344,-151.0,0.0002283,7]
[384775106,1757532651353,-151.0,0.0002283,7]
[384775107,1757532651363,-151.0,0.0002283,7]
[384775108,1757532651480,-151.0,0.0002283,7]
[384775109,1757532651490,-151.0,0.0002283,7]
[384775110,1757532651500,-151.0,0.0002283,7]
[384775111,1757532651510,-151.0,0.0002283,7]
[384775112,1757532651520,-151.0,0.0002283,7]
[384775113,1757532651530,-153.328275,0.0002283,7]
[384775114,1757532651540,-153.328275,0.0002283,7]
[384775115,1757532651549,-153.328275,0.0002283,7]
[384775116,1757532651559,-153.328281,0.0002283,7]
[384775117,1757532651570,-151.0,0.0002283,7]
[384775118,1757532651579,-151.0,0.0002283,7]
[384775119,1757532651588,-151.0,0.0002283,7]
[384775120,1757532651598,-151.0,0.0002283,7]
[384775121,1757532651608,-243.43633916,0.0002283,7]
[384775122,1757532651617,-761.271209,0.0002283,7]
[384775123,1757532651626,-761.271209,0.0002283,7]
[384775124,1757532651636,-761.271209,0.0002283,7]
[384775125,1757532651645,-761.271218,0.0002283,7]
[384775126,1757532651654,-151.0,0.0002283,7]
[384775127,1757532651663,-211.4,0.0002283,7]
[384775128,1757532651673,-430.557456,0.0002283,7]
[384775129,1757532651684,-430.557456,0.0002283,7]
[384775130,1757532651693,-430.557456,0.0002283,7]
[384775131,1757532651703,-430.557462,0.0002283,7]
[384775132,1757532651713,-150.0,0.00022833,2]
[384775133,1757532651723,-936.46,0.00022842,2]
[384775134,1757532651732,-466.899093,0.00022852,3]
[384775135,1757532651742,-162.698496,0.00022852,3]
[384775136,1757532651751,-800.0,0.00022878,2]
[384775137,1757532651761,-151.0,0.00022878,7]
[384775138,1757532651770,-274.599393,0.00022878,7]
[384775139,1757532651779,-274.599393,0.00022878,7]
[384775140,1757532651788,-274.599393,0.00022878,7]
[384775141,1757532651797,-274.599393,0.00022878,7]
[384775142,1757532651806,-151.0,0.00022878,7]
[384775143,1757532651815,-151.0,0.00022878,2]
[384775144,1757532651824,-151.0,0.00022878,7]
[384775145,1757532651833,-800.0,0.00022884,2]
[384775146,1757532651842,-151.0,0.00022885,7]
[384775147,1757532651852,-151.0,0.00022885,7]
[384775148,1757532651861,-151.0,0.00022885,7]
[384775149,1757532651870,-151.0,0.00022892,7]
[384775150,1757532651880,-298.953343,0.00022892,7]
[384775151,1757532651889,-151.0,0.00022892,7]
[384775152,1757532651898,-151.0,0.00022892,7]
[384775153,1757532651907,-3636.6612741,0.00022913,2]
[384775154,1757532651916,-7898.7632786,0.00022913,2]
[384775155,1757532651926,-151.0,0.00022913,7]
[384775156,1757532651936,-222.799,0.00022913,7]
[384775157,1757532651945,-151.0,0.00022913,7]
[384775158,1757532651953,-500.0,0.0002292,2]
[384775159,1757532651963,-1165.59704368,0.00023,2]
[384775160,1757532651972,-219.0,0.00023014,7]
[384775161,1757532651981,-415.48425378,0.00023073,2]
[384775162,1757532651991,-150.0,0.00023073,2]
[384775163,1757532652000,-158.06285908,0.00023073,2]
[384775164,1757532652009,-151.0,0.000231,8]
[384775165,1757532652018,-45413.69995976,0.000231,7]
[384775166,1757532652141,-1335.51470334,0.000231,7]
[384775167,1757532652342,-480.0,0.00013698,2]
[384775168,1757532652351,-1104.37663978,0.000231,7]
[384775169,1757532652362,-305.42591276,0.000231,7]
[384775170,1757532652454,-480.0,0.00013698,2]
[384775171,1757532652465,-480.0,0.00013698,2]
[384775172,1757532652475,-50000.0,0.00013698,2]
[384775173,1757532652486,-35654.28052724,0.000231,7]
[384775174,1757532652532,-480.0,0.00013698,2]
[384775175,1757532652541,-220.000001,0.00013698,2]
[384775176,1757532665818,500.0,0.00013593,2]
[384775177,1757532670858,778.36199685,0.00013494,2]
[384775178,1757532670882,5000.0,0.00013494,2]
[384775179,1757532670907,5000.0,0.00013494,2]
[384775180,1757532670929,5000.0,0.00013494,2]
[384775181,1757532670954,5000.0,0.00013494,2]
[384775182,1757532670976,5000.0,0.00013494,2]
[384775183,1757532670999,5000.0,0.00013494,2]
[384775184,1757532671022,5000.0,0.00013494,2]
[384775185,1757532671044,5000.0,0.00013494,2]
[384775186,1757532671066,5000.0,0.00013494,2]
[384775187,1757532671088,5000.0,0.00013494,2]
[384775188,1757532671110,5000.0,0.00013494,2]
[384775189,1757532671132,5000.0,0.00013494,2]
[384775190,1757532671155,5000.0,0.00013494,2]
[384775191,1757532671176,5000.0,0.00013494,2]
[384775192,1757532671198,10000.01,0.00013494,2]
[384775193,1757532671220,10000.01,0.00013494,2]
[384775194,1757532671242,10000.01,0.00013494,2]
[384775195,1757532671263,10000.01,0.00013494,2]
[384775196,1757532671284,10000.01,0.00013494,2]
[384775197,1757532671305,10000.01,0.00013494,2]
[384775198,1757532671328,10000.01,0.00013494,2]
[384775199,1757532671350,10000.01,0.00013494,2]
[384775200,1757532671374,10000.01,0.00013494,2]
[384775201,1757532671397,10000.01,0.00013494,2]
[384775202,1757532671424,5000.0,0.00013494,2]
[384775203,1757532671448,5000.0,0.00013494,2]
[384775204,1757532671474,5000.0,0.00013494,2]
[384775205,1757532671497,5000.0,0.00013494,2]
[384775206,1757532671520,5000.0,0.00013494,2]
[384775207,1757532671542,5000.0,0.00013494,2]
[384775208,1757532671566,5000.0,0.00013494,2]
[384775209,1757532671589,5000.0,0.00013494,2]
[384775210,1757532677112,327.47,0.00012329,2]
[384775211,1757532687740,272.89,0.00012329,2]
[384775212,1757532698480,227.41,0.00012329,2]
[384775213,1757532709245,189.51,0.00012329,2]
[384775214,1757532718083,1200.0,0.00013359,2]
[384775215,1757532721771,157.93,0.00012329,2]
[384775216,1757532726435,300.0,0.00013358,2]
[384775217,1757532732441,789.65,0.00012329,2]
[384775218,1757532734418,239.14395489,0.00013358,2]
[384775219,1757532742289,1500.0,0.00013358,2]
[384775221,1757532750664,948.8941879,0.00013358,2]
[384775222,1757532758348,3847.11185721,0.00012688,2]
[384775223,1757532758371,6152.88814279,0.00012688,2]
[384775224,1757532762100,666.0,0.00012688,2]
[384775225,1757532765840,3181.12185721,0.00013358,2]
[384775226,1757532765864,707.18881531,0.00013358,2]
[384775227,1757532768445,2265.4028278,0.00012645,2]
[384775228,1757532789962,239.14395489,0.00013358,2]
[384775229,1757532791085,151.0,0.000122,2]
[384775230,1757532791390,151.0,0.00011,2]
[384775231,1757532796931,152.49321819,0.00013393,2]
[384775232,1757532822624,539.12613408,0.00013393,2]
[384775236,1757533078526,1500.0,0.00013355,2]
[384775237,1757533092978,681.0019812,0.00012493,2]
[384775242,1757533200857,471.73536732,0.00013391,2]
[384775243,1757533255579,982.41,0.00012329,2]
[384775244,1757533266170,818.68,0.00012329,2]
[384775245,1757533276849,682.23,0.00012329,2]
[384775246,1757533287467,568.52,0.00012329,2]
[384775247,1757533297927,473.77,0.00012329,2]
[384775248,1757533308493,394.81,0.00012329,2]
[384775249,1757533315353,201.1663036,0.00012495,2]
[384775250,1757533319151,329.01,0.00012329,2]
[384775251,1757533319777,1273.9880139,0.00012595,2]
[384775252,1757533328810,-1200.0,0.00013489,2]
[384775253,1757533328840,-300.0,0.00013489,2]
[384775254,1757533328867,-1200.0,0.0001349,2]
[384775255,1757533328894,-300.0,0.0001349,2]
[384775256,1757533328923,-300.0,0.0001349,2]
[384775257,1757533328949,-300.0,0.0001349,2]
[384775258,1757533328977,-300.0,0.0001349,2]
[384775259,1757533329919,274.17,0.00012329,2]
[384775260,1757533338841,-1200.0,0.0001349,2]
[384775261,1757533340870,228.48,0.00012329,2]
[384775262,1757533350012,-3524.36119538,0.00013491,2]
[384775263,1757533350144,-10000.01,0.00013491,2]
[384775264,1757533350310,-10000.01,0.00013491,2]
[384775265,1757533351622,190.4,0.00012329,2]
[384775266,1757533355075,-5000.0,0.00013491,2]
[384775267,1757533355410,-5000.0,0.00013491,2]
[384775268,1757533355695,-652.81457271,0.00013491,2]
[384775269,1757533355723,-500.0,0.00013493,2]
[384775270,1757533355752,-174.43691838,0.00013493,2]
[384775271,1757533355780,-500.0,0.00013493,2]
[384775272,1757533355808,-500.0,0.00013493,2]
[384775273,1757533355901,-345.49701782,0.00013493,2]
[384775274,1757533356078,-154.50298218,0.00013493,2]
[384775275,1757533356107,-500.0,0.00013493,2]
[384775276,1757533356137,-500.0,0.00013493,2]
[384775277,1757533356165,-500.0,0.00013493,2]
[384775278,1757533356195,-500.0,0.00013493,2]
[384775279,1757533356227,-190.99403564,0.00013493,2]
[384775280,1757533356322,-309.00596436,0.00013493,2]
[384775281,1757533356388,-500.0,0.00013493,2]
[384775282,1757533356417,-500.0,0.00013493,2]
[384775283,1757533356446,-500.0,0.00013493,2]
[384775284,1757533356477,-247.0837186,0.00013493,2]
[384775285,1757533356507,-500.0,0.00013493,2]
[384775286,1757533356535,-5.8325628,0.00013493,2]
[384775287,1757533356633,-494.1674372,0.00013493,2]
[384775288,1757533356828,-500.0,0.00013493,2]
[384775289,1757533356856,-500.0,0.00013493,2]
[384775290,1757533356886,-500.0,0.00013493,2]
[384775291,1757533356918,-500.0,0.00013493,2]
[384775292,1757533356947,-367.26292282,0.00013493,2]
[384775293,1757533357050,-265.47415436,0.00013493,2]
[384775294,1757533357222,-234.52584564,0.00013493,2]
[384775295,1757533357249,-500.0,0.00013493,2]
[384775296,1757533357278,-500.0,0.00013493,2]
[384775297,1757533357405,-257.5488192,0.00013493,2]
[384775298,1757533357432,-219.95740334,0.00013493,2]
[384775299,1757533357470,-500.0,0.00013493,2]
[384775300,1757533357499,-75.93586364,0.00013493,2]
[384775301,1757533357736,-424.06413636,0.00013493,2]
[384775302,1757533357770,-500.0,0.00013493,2]
[384775303,1757533357801,-500.0,0.00013493,2]
[384775304,1757533357832,-500.0,0.00013493,2]
[384775305,1757533357860,-500.0,0.00013493,2]
[384775306,1757533357889,-500.0,0.00013493,2]
[384775307,1757533358002,-500.0,0.00013493,2]
[384775308,1757533358030,-253.21449994,0.00013493,2]
[384775309,1757533358059,-500.0,0.00013493,2]
[384775310,1757533358088,-500.0,0.00013493,2]
[384775311,1757533358116,-500.0,0.00013493,2]
[384775312,1757533358206,-493.57100012,0.00013493,2]
[384775313,1757533358334,-6.42899988,0.00013493,2]
[384775314,1757533358363,-500.0,0.00013493,2]
[384775315,1757533358393,-500.0,0.00013493,2]
[384775316,1757533358422,-500.0,0.00013493,2]
[384775317,1757533358449,-565.60287844,0.00013493,2]
[384775318,1757533358478,-355.93624336,0.00013493,2]
[384775319,1757533358563,-144.06375664,0.00013493,2]
[384775320,1757533358679,-500.0,0.00013493,2]
[384775321,1757533358708,-500.0,0.00013493,2]
[384775322,1757533358735,-500.0,0.00013493,2]
[384775323,1757533358765,-500.0,0.00013493,2]
[384775324,1757533358795,-500.0,0.00013493,2]
[384775325,1757533359014,-500.0,0.00013493,2]
[384775326,1757533359043,-500.0,0.00013493,2]
[384775327,1757533359071,-550.0,0.00013493,2]
[384775328,1757533359098,-500.0,0.00013493,2]
[384775329,1757533359127,-500.0,0.00013493,2]
[384775330,1757533359156,-500.0,0.00013493,2]
[384775331,1757533359182,-500.0,0.00013493,2]
[384775332,1757533359210,-500.0,0.00013493,2]
[384775333,1757533359234,-318.27450805,0.00013493,2]
[384775334,1757533359260,-500.0,0.00013493,2]
[384775335,1757533359494,-500.0,0.00013493,2]
[384775336,1757533359524,-500.0,0.00013493,2]
[384775337,1757533359554,-500.0,0.00013493,2]
[384775338,1757533359583,-500.0,0.00013493,2]
[384775339,1757533359614,-500.0,0.00013493,2]
[384775340,1757533359650,-500.0,0.00013493,2]
[384775341,1757533359679,-500.0,0.00013493,2]
[384775342,1757533359709,-500.0,0.00013493,2]
[384775343,1757533359740,-500.0,0.00013493,2]
[384775344,1757533359774,-500.0,0.00013493,2]
[384775345,1757533359887,-500.0,0.00013493,2]
[384775346,1757533359920,-500.0,0.00013493,2]
[384775347,1757533359956,-500.0,0.00013493,2]
[384775348,1757533359986,-500.0,0.00013493,2]
[384775349,1757533360018,-500.0,0.00013493,2]
[384775350,1757533360050,-500.0,0.00013493,2]
[384775351,1757533360086,-500.0,0.00013493,2]
[384775352,1757533360117,-500.0,0.00013493,2]
[384775353,1757533360148,-500.0,0.00013493,2]
[384775354,1757533360180,-379.18181565,0.00013493,2]
[384775355,1757533360347,-500.0,0.00013493,2]
[384775356,1757533360377,-500.0,0.00013493,2]
[384775357,1757533360407,-500.0,0.00013493,2]
[384775358,1757533360436,-500.0,0.00013493,2]
[384775359,1757533360466,-500.0,0.00013493,2]
[384775360,1757533360494,-500.0,0.00013493,2]
[384775361,1757533360524,-500.0,0.00013493,2]
[384775362,1757533360552,-500.0,0.00013493,2]
[384775363,1757533360583,-500.0,0.00013493,2]
[384775364,1757533360613,-500.0,0.00013493,2]
[384775365,1757533360714,-500.0,0.00013493,2]
[384775366,1757533360742,-500.0,0.00013493,2]
[384775367,1757533360774,-200.47953739,0.00013493,2]
[384775368,1757533360804,-500.0,0.00013493,2]
[384775369,1757533360833,-500.0,0.00013493,2]
[384775370,1757533360864,-500.0,0.00013493,2]
[384775371,1757533360894,-500.0,0.00013493,2]
[384775372,1757533360923,-500.0,0.00013493,2]
[384775373,1757533360953,-500.0,0.00013493,2]
[384775374,1757533360983,-500.0,0.00013493,2]
[384775375,1757533361012,-99.05092522,0.00013493,2]
[384775376,1757533361127,-400.94907478,0.00013493,2]
[384775377,1757533361158,-500.0,0.00013493,2]
[384775378,1757533361187,-500.0,0.00013493,2]
[384775379,1757533361216,-500.0,0.00013493,2]
[384775380,1757533361244,-500.0,0.00013493,2]
[384775381,1757533361273,-500.0,0.00013493,2]
[384775382,1757533361302,-500.0,0.00013493,2]
[384775383,1757533361333,-500.0,0.00013493,2]
[384775384,1757533361361,-500.0,0.00013493,2]
[384775385,1757533361391,-500.0,0.00013493,2]
[384775386,1757533361615,-464.6532858,0.00013493,2]
[384775387,1757533361642,-500.0,0.00013493,2]
[384775388,1757533361668,-500.0,0.00013493,2]
[384775389,1757533361696,-500.0,0.00013493,2]
[384775390,1757533361724,-500.0,0.00013493,2]
[384775391,1757533361754,-175.21260295,0.00013493,2]
[384775392,1757533361783,-500.0,0.00013493,2]
[384775393,1757533361907,500.0,0.00013493,2]
[384775394,1757533362778,158.66,0.00012329,2]
[384775395,1757533363628,-4841.34,0.00013494,2]
[384775396,1757533364036,-5000.0,0.00013494,2]
[384775397,1757533372610,793.35,0.00012329,2]
[384775398,1757533373975,239.14395489,0.00013359,2]
[384775399,1757533382736,300.0,0.00013493,2]
[384775400,1757533400823,500.0,0.00013492,2]
[384775401,1757533401128,360.78707984,0.00013492,2]
[384775402,1757533401163,500.0,0.00013492,2]
[384775403,1757533401697,368.33718777,0.00013492,2]
[384775404,1757533401720,131.66281223,0.00013492,2]
[384775405,1757533402021,500.0,0.00013492,2]
[384775406,1757533402052,411.16439304,0.00013492,2]
[384775407,1757533402349,500.0,0.00013492,2]
[384775408,1757533402400,320.64500547,0.00013492,2]
[384775409,1757533410925,8136.53778926,0.00013359,2]
[384775410,1757533410948,1829.85438144,0.00013359,2]
[384775412,1757533417321,8170.15561856,0.00012692,2]